[Event "Test Tournament"]
[Site "Emanuel Lasker Arena"]
[Date "2024.04.09"]
[Round "2"]
[White "Botany"]
[Black "Melancholia"]
[Result "0-1"]
[WhiteElo "1553"]
[BlackElo "1620"]
[Annotator "NA RC"]
[PlyCount "74"]
[EventDate "2024.04.09"]
[EventType "swiss (blitz)"]
[TimeControl "60"]

1. d4 {[%emt 0:00:01]} Nf6 {[%emt 0:00:02]} 2. c4 {[%emt 0:00:01]} c5 {[%emt 0:00:01]} 3. d5 {[%emt 0:00:01]} b5 {[%emt 0:00:01]} 4. cxb5 {[%emt 0:00:01]} a6 {[%emt 0:00:02]} 5. bxa6 {[%emt 0:00:02]} g6 {[%emt 0:00:01]} 6. Nc3 {[%emt 0:00:02]} Bxa6 {[%emt 0:00:01]} 7. Bf4 {[%emt 0:00:01]} Qa5 {[%emt 0:00:02]} 8. a4 {[%emt 0:00:01]} Qb4 {[%emt 0:00:04]} 9. Bc7 {[%emt 0:00:03]} Qxb2 {[%emt 0:00:04]} 10. Rc1 {[%emt 0:00:03]} Bh6 {[%emt 0:00:03]} 11. Rc2 {[%emt 0:00:05]} Ne4 {[%emt 0:00:11]} 12. Rxb2 {[%emt 0:00:01]} Nxc3 {[%emt 0:00:01]} 13. Qb3 {[%emt 0:00:03]} O-O {[%emt 0:00:03]} 14. Qxc3 {[%emt 0:00:01]} f5 {[%emt 0:00:01]} 15. Qxc5 {[%emt 0:00:03]} Rc8 {[%emt 0:00:02]} 16. Qxe7 {[%emt 0:00:01]} Bf8 {[%emt 0:00:01]} 17. Qe5 {[%emt 0:00:02]} Bg7 {[%emt 0:00:01]} 18. Rxb8 {[%emt 0:00:01]} Bxe5 {[%emt 0:00:01]} 19. Bxe5 {[%emt 0:00:01]} Raxb8 {[%emt 0:00:01]} 20. Bxb8 {[%emt 0:00:01]} Rxb8 {[%emt 0:00:01]} 21. Nf3 {[%emt 0:00:02]} Rb1+ {[%emt 0:00:01]} 22. Kd2 {[%emt 0:00:01]} d6 {[%emt 0:00:01]} 23. a5 {[%emt 0:00:02]} g5 {[%emt 0:00:01]} 24. Nxg5 {[%emt 0:00:02]} Ra1 {[%emt 0:00:02]} 25. e3 {[%emt 0:00:01]} Bxf1 {[%emt 0:00:01]} 26. h3 {[%emt 0:00:01]} h6 {[%emt 0:00:01]} 27. h4 {[%emt 0:00:08]} hxg5 {[%emt 0:00:01]} 28. hxg5 {[%emt 0:00:01]} Kf7 {[%emt 0:00:01]} 29. f3 {[%emt 0:00:01]} Kg7 {[%emt 0:00:01]} 30. Kc2 {[%emt 0:00:01]} Bc4 {[%emt 0:00:01]} 31. Rxa1 {[%emt 0:00:01]} Bxd5 {[%emt 0:00:01]} 32. a6 {[%emt 0:00:01]} Kg6 {[%emt 0:00:01]} 33. Ra5 {[%emt 0:00:01]} Bc6 {[%emt 0:00:01]} 34. Kd3 {[%emt 0:00:01]} Kxg5 {[%emt 0:00:00]} 35. e4 {[%emt 0:00:01]} Kh4 {[%emt 0:00:01]} 36. exf5 {[%emt 0:00:01]} Kg3 {[%emt 0:00:01] .} 37. Ra2 {[%emt 0:00:01]} Bd5 {[%emt 0:00:01]} 0-1

[Event "Test Tournament"]
[Site "Emanuel Lasker Arena"]
[Date "2024.04.09"]
[Round "3"]
[White "Chartwell"]
[Black "Einpassant"]
[Result "0-1"]
[WhiteElo "2150"]
[BlackElo "1620"]
[Annotator "RC"]
[PlyCount "72"]
[EventDate "2024.04.09"]
[EventType "swiss (blitz)"]
[TimeControl "60"]

1. c4 {[%emt 0:00:01]} c5 {[%emt 0:00:01]} 2. g3 {[%emt 0:00:01]} Nf6 {[%emt 0:00:01]} 3. Bg2 {[%emt 0:00:01]} e6 {[%emt 0:00:01]} 4. Nf3 {[%emt 0:00:01]} Nc6 {[%emt 0:00:00]} 5. O-O {[%emt 0:00:01]} d5 {[%emt 0:00:01]} 6. d4 {[%emt 0:00:01]} dxc4 {[%emt 0:00:01]} 7. Qa4 {[%emt 0:00:00]} Bd7 {[%emt 0:00:01]} 8. dxc5 {[%emt 0:00:01]} Bxc5 {[%emt 0:00:01]} 9. Qxc4 {[%emt 0:00:01]} Qb6 {[%emt 0:00:01]} 10. Nc3 {[%emt 0:00:01]} Na5 {[%emt 0:00:01]} 11. Qf4 {[%emt 0:00:01]} O-O {[%emt 0:00:04]} 12. Ne5 {[%emt 0:00:04]} Rad8 {[%emt 0:00:01]} 13. e3 {[%emt 0:00:01]} Bc6 {[%emt 0:00:04]} 14. Na4 {[%emt 0:00:04]} Qb4 {[%emt 0:00:04]} 15. Nxc5 {[%emt 0:00:01]} Qxc5 {[%emt 0:00:01]} 16. b4 {[%emt 0:00:04]} Qc3 {[%emt 0:00:01]} 17. Nxc6 {[%emt 0:00:01]} Nxc6 {[%emt 0:00:01]} 18. Bxc6 {[%emt 0:00:01]} Qxa1 {[%emt 0:00:02]} 19. Bxb7 {[%emt 0:00:01]} Qxa2 {[%emt 0:00:01]} 20. b5 {[%emt 0:00:03]} Rd3 {[%emt 0:00:03]} 21. e4 {[%emt 0:00:03]} Rfd8 {[%emt 0:00:03]} 22. Be3 {[%emt 0:00:03]} Rd1 {[%emt 0:00:03]} 23. Qc7 {[%emt 0:00:03]} Qe2 {[%emt 0:00:02]} 24. Rxd1 {[%emt 0:00:01]} Rxd1+ {[%emt 0:00:01]} 25. Kg2 {[%emt 0:00:00]} Ne8 {[%emt 0:00:01]} 26. Qe5 {[%emt 0:00:02]} Nd6 {[%emt 0:00:02]} 27. Bc6 {[%emt 0:00:03]} Qf1+ {[%emt 0:00:03]} 28. Kf3 {[%emt 0:00:01]} Rd3 {[%emt 0:00:02]} 29. Kf4 {[%emt 0:00:03]} Rxe3 {[%emt 0:00:01]} 30. Qxd6 {[%emt 0:00:01]} Qxf2+ {[%emt 0:00:01]} 31. Kg4 {[%emt 0:00:01]} Qe2+ {[%emt 0:00:01]} 32. Kf4 {[%emt 0:00:01]} h5 {[%emt 0:00:01]} 33. Qe7 {[%emt 0:00:01]} Rd3 {[%emt 0:00:02]} 34. b6 {[%emt 0:00:01]} Qf3+ {[%emt 0:00:01]} 35. Ke5 {[%emt 0:00:01]} f6+ {[%emt 0:00:01]} 36. Kxe6 {[%emt 0:00:00]} Qg4# {[%emt 0:00:01] (Lag: Av=0.05s, max=0.2s)} 0-1

[Event "Test Tournament"]
[Site "Emanuel Lasker Arena"]
[Date "2024.04.09"]
[Round "3"]
[White "Antonella"]
[Black "Alicia"]
[Result "0-1"]
[WhiteElo "2040"]
[BlackElo "2226"]
[Annotator "RC"]
[PlyCount "64"]
[EventDate "2024.04.09"]
[EventType "swiss (blitz)"]
[TimeControl "60"]

1. d4 {[%emt 0:00:01]} Nf6 {[%emt 0:00:01]} 2. c4 {[%emt 0:00:01]} g6 {[%emt 0:00:01]} 3. Nc3 {[%emt 0:00:01]} Bg7 {[%emt 0:00:01]} 4. e4 {[%emt 0:00:00]} d6 {[%emt 0:00:01]} 5. Nf3 {[%emt 0:00:01]} O-O {[%emt 0:00:01]} 6. Be2 {[%emt 0:00:01]} e5 {[%emt 0:00:01]} 7. O-O {[%emt 0:00:01]} Nbd7 {[%emt 0:00:01]} 8. Re1 {[%emt 0:00:01]} c6 {[%emt 0:00:01]} 9. Bf1 {[%emt 0:00:01]} Re8 {[%emt 0:00:01]} 10. d5 {[%emt 0:00:01]} c5 {[%emt 0:00:02]} 11. a4 {[%emt 0:00:04]} Nf8 {[%emt 0:00:01]} 12. Ra3 {[%emt 0:00:01]} h6 {[%emt 0:00:02]} 13. h3 {[%emt 0:00:05]} a5 {[%emt 0:00:03]} 14. Nb5 {[%emt 0:00:02]} g5 {[%emt 0:00:06]} 15. Nd2 {[%emt 0:00:03]} g4 {[%emt 0:00:03]} 16. Nb1 {[%emt 0:00:02]} gxh3 {[%emt 0:00:03]} 17. gxh3 {[%emt 0:00:01]} h5 {[%emt 0:00:03]} 18. Rg3 {[%emt 0:00:01]} h4 {[%emt 0:00:03]} 19. Qd4 {[%emt 0:00:03]} exd4 {[%emt 0:00:01]} 20. Rf3 {[%emt 0:00:03]} Nxe4 {[%emt 0:00:01]} 21. b4 {[%emt 0:00:03]} Ng5 {[%emt 0:00:02]} 22. Nxd6 {[%emt 0:00:03]} Nxf3+ {[%emt 0:00:01]} 23. Kg2 {[%emt 0:00:01]} Nxe1+ {[%emt 0:00:01]} 24. Kh1 {[%emt 0:00:01]} Qxd6 {[%emt 0:00:01]} 25. bxc5 {[%emt 0:00:01]} Qxc5 {[%emt 0:00:01]} 26. Ba3 {[%emt 0:00:03]} Qc7 {[%emt 0:00:01]} 27. Bxf8 {[%emt 0:00:01]} Kxf8 {[%emt 0:00:01]} 28. Na3 {[%emt 0:00:02]} Bxh3 {[%emt 0:00:01]} 29. Nb5 {[%emt 0:00:01]} Qd7 {[%emt 0:00:01]} 30. Kh2 {[%emt 0:00:01]} Bxf1 {[%emt 0:00:01]} 31. d6 {[%emt 0:00:01]} Qg4 {[%emt 0:00:01]} 32. Kh1 {[%emt 0:00:01]} Qg2# {[%emt 0:00:01] (Lag: Av=0.07s, max=0.7s)} 0-1

[Event "Test Tournament"]
[Site "Emanuel Lasker Arena"]
[Date "2024.04.09"]
[Round "3"]
[White "ArrowPlay"]
[Black "Roberta Draper"]
[Result "1-0"]
[WhiteElo "2027"]
[BlackElo "1620"]
[Annotator "RC"]
[PlyCount "67"]
[EventDate "2024.04.09"]
[EventType "swiss (blitz)"]
[TimeControl "60"]

1. d4 {[%emt 0:00:01]} Nf6 {[%emt 0:00:01]} 2. c4 {[%emt 0:00:01]} g6 {[%emt 0:00:01]} 3. Nc3 {[%emt 0:00:01]} Bg7 {[%emt 0:00:01]} 4. e4 {[%emt 0:00:01]} d6 {[%emt 0:00:01]} 5. Nf3 {[%emt 0:00:01]} O-O {[%emt 0:00:01]} 6. Be2 {[%emt 0:00:01]} Na6 {[%emt 0:00:00]} 7. Be3 {[%emt 0:00:01]} e5 {[%emt 0:00:01]} 8. O-O {[%emt 0:00:01]} Ng4 {[%emt 0:00:01]} 9. Bg5 {[%emt 0:00:01]} Qe8 {[%emt 0:00:01]} 10. dxe5 {[%emt 0:00:01]} dxe5 {[%emt 0:00:01]} 11. h3 {[%emt 0:00:01]} h6 {[%emt 0:00:02]} 12. Bc1 {[%emt 0:00:01]} Nf6 {[%emt 0:00:01]} 13. Be3 {[%emt 0:00:04]} Qe7 {[%emt 0:00:01]} 14. Nd5 {[%emt 0:00:01]} Qd6 {[%emt 0:00:01]} 15. Nc3 {[%emt 0:00:01]} Bd7 {[%emt 0:00:01]} 16. Qc1 {[%emt 0:00:02]} Nc5 {[%emt 0:00:03]} 17. Rd1 {[%emt 0:00:03]} Qe7 {[%emt 0:00:05]} 18. Bxh6 {[%emt 0:00:01]} Ncxe4 {[%emt 0:00:01]} 19. Nxe4 {[%emt 0:00:01]} Nxe4 {[%emt 0:00:01]} 20. Rd5 {[%emt 0:00:03]} f6 {[%emt 0:00:03]} 21. Bd3 {[%emt 0:00:06]} Nc5 {[%emt 0:00:07]} 22. Bxg6 {[%emt 0:00:00]} a5 {[%emt 0:00:03]} 23. Qe3 {[%emt 0:00:02]} c6 {[%emt 0:00:02]} 24. Rxc5 {[%emt 0:00:01]} Bxh3 {[%emt 0:00:01]} 25. Rd1 {[%emt 0:00:01]} Rfd8 {[%emt 0:00:02]} 26. Re1 {[%emt 0:00:03]} Bg4 {[%emt 0:00:02]} 27. Bxg7 {[%emt 0:00:01]} Kxg7 {[%emt 0:00:00]} 28. Nxe5 {[%emt 0:00:02]} fxe5 {[%emt 0:00:01]} 29. Rxe5 {[%emt 0:00:01]} Qh4 {[%emt 0:00:02]} 30. Rg5 {[%emt 0:00:01]} Bd1 {[%emt 0:00:02]} 31. Be8+ {[%emt 0:00:01]} Kh6 {[%emt 0:00:01]} 32. Qe6+ {[%emt 0:00:01]} Kxg5 {[%emt 0:00:01]} 33. Qg6+ {[%emt 0:00:01]} Kf4 {[%emt 0:00:01]} 34. Re4# {[%emt 0:00:01] (Lag: Av=0.06s, max=0.4s)} 1-0

[Event "Test Tournament"]
[Site "Emanuel Lasker Arena"]
[Date "2024.04.09"]
[Round "3"]
[White "Myopix"]
[Black "PinPointPro"]
[Result "0-1"]
[WhiteElo "1965"]
[BlackElo "1984"]
[Annotator "RC"]
[PlyCount "68"]
[EventDate "2024.04.09"]
[EventType "swiss (blitz)"]
[TimeControl "60"]

1. e4 {[%emt 0:00:01]} e5 {[%emt 0:00:01]} 2. Nf3 {[%emt 0:00:00]} Nc6 {[%emt 0:00:01]} 3. Bb5 {[%emt 0:00:01]} a6 {[%emt 0:00:01]} 4. Ba4 {[%emt 0:00:01]} Nf6 {[%emt 0:00:00]} 5. O-O {[%emt 0:00:01]} Be7 {[%emt 0:00:01]} 6. Re1 {[%emt 0:00:01]} b5 {[%emt 0:00:01]} 7. Bb3 {[%emt 0:00:01]} O-O {[%emt 0:00:01]} 8. c3 {[%emt 0:00:01]} d6 {[%emt 0:00:01]} 9. d4 {[%emt 0:00:01]} Bg4 {[%emt 0:00:00]} 10. d5 {[%emt 0:00:01]} Na5 {[%emt 0:00:01]} 11. Bc2 {[%emt 0:00:01]} c6 {[%emt 0:00:01]} 12. Bd3 {[%emt 0:00:02]} cxd5 {[%emt 0:00:01]} 13. exd5 {[%emt 0:00:01]} Nxd5 {[%emt 0:00:01]} 14. Be4 {[%emt 0:00:04]} Nb6 {[%emt 0:00:04]} 15. Bxa8 {[%emt 0:00:01]} Qxa8 {[%emt 0:00:01]} 16. Qd3 {[%emt 0:00:03]} Nac4 {[%emt 0:00:02]} 17. Ng5 {[%emt 0:00:03]} f5 {[%emt 0:00:03]} 18. Ne6 {[%emt 0:00:03]} e4 {[%emt 0:00:02]} 19. h3 {[%emt 0:00:03]} exd3 {[%emt 0:00:01]} 20. hxg4 {[%emt 0:00:00]} Qd5 {[%emt 0:00:08]} 21. Nxf8 {[%emt 0:00:01]} Kxf8 {[%emt 0:00:01]} 22. g5 {[%emt 0:00:02]} g6 {[%emt 0:00:03]} 23. Nd2 {[%emt 0:00:02]} Na4 {[%emt 0:00:03]} 24. g4 {[%emt 0:00:02]} Ne5 {[%emt 0:00:01]} 25. f4 {[%emt 0:00:02]} Nf3+ {[%emt 0:00:02]} 26. Nxf3 {[%emt 0:00:01]} Qxf3 {[%emt 0:00:01]} 27. Re6 {[%emt 0:00:02]} Qxg4+ {[%emt 0:00:01]} 28. Kf2 {[%emt 0:00:01]} Kf7 {[%emt 0:00:02]} 29. Ke3 {[%emt 0:00:03]} Qg3+ {[%emt 0:00:01]} 30. Kd2 {[%emt 0:00:01]} Qf2+ {[%emt 0:00:01]} 31. Kd1 {[%emt 0:00:01]} Kxe6 {[%emt 0:00:01]} 32. Bd2 {[%emt 0:00:01]} Qe2+ {[%emt 0:00:01]} 33. Kc1 {[%emt 0:00:01]} Qf1+ {[%emt 0:00:01]} 34. Be1 {[%emt 0:00:01]} Qxe1# {[%emt 0:00:01] (Lag: Av=0.05s, max=0.1s)} 0-1

[Event "Test Tournament"]
[Site "Emanuel Lasker Arena"]
[Date "2024.04.09"]
[Round "3"]
[White "Copacablanca"]
[Black "Girlfriend Chess"]
[Result "0-1"]
[WhiteElo "1922"]
[BlackElo "1752"]
[Annotator "RC"]
[PlyCount "40"]
[EventDate "2024.04.09"]
[EventType "swiss (blitz)"]
[TimeControl "60"]

1. d4 {[%emt 0:00:01]} d5 {[%emt 0:00:01]} 2. c4 {[%emt 0:00:01]} e6 {[%emt 0:00:01]} 3. Nf3 {[%emt 0:00:01]} Nf6 {[%emt 0:00:01]} 4. g3 {[%emt 0:00:01]} dxc4 {[%emt 0:00:01]} 5. Bg2 {[%emt 0:00:01]} c5 {[%emt 0:00:01]} 6. O-O {[%emt 0:00:01]} Nc6 {[%emt 0:00:01]} 7. Ne5 {[%emt 0:00:01]} Nxd4 {[%emt 0:00:02]} 8. e3 {[%emt 0:00:01]} Be7 {[%emt 0:00:04]} 9. exd4 {[%emt 0:00:01]} cxd4 {[%emt 0:00:01]} 10. Nxc4 {[%emt 0:00:02]} b5 {[%emt 0:00:04]} 11. Ne5 {[%emt 0:00:05]} Qc7 {[%emt 0:00:04]} 12. Qxd4 {[%emt 0:00:01]} Bc5 {[%emt 0:00:04]} 13. Qd3 {[%emt 0:00:04]} Qxe5 {[%emt 0:00:03]} 14. Bc6+ {[%emt 0:00:01]} Bd7 {[%emt 0:00:07]} 15. Bxa8 {[%emt 0:00:01]} O-O {[%emt 0:00:02]} 16. Bf3 {[%emt 0:00:03]} a5 {[%emt 0:00:02]} 17. Qc3 {[%emt 0:00:03]} Qf5 {[%emt 0:00:03]} 18. Be3 {[%emt 0:00:03]} Qxf3 {[%emt 0:00:01]} 19. Qxc5 {[%emt 0:00:01]} b4 {[%emt 0:00:02]} 20. Qxa5 {[%emt 0:00:01]} Bc6 {[%emt 0:00:01] Copacablanca resigns (Lag: Av=0.06s, max=0.4s)} 0-1

[Event "Test Tournament"]
[Site "Emanuel Lasker Arena"]
[Date "2024.04.09"]
[Round "3"]
[White "Zimtowitch"]
[Black "Hollis"]
[Result "0-1"]
[WhiteElo "1896"]
[BlackElo "1881"]
[Annotator "NA RC"]
[PlyCount "44"]
[EventDate "2024.04.09"]
[EventType "swiss (blitz)"]
[TimeControl "60"]

1. e4 {[%emt 0:00:01]} e5 {[%emt 0:00:01]} 2. Nf3 {[%emt 0:00:01]} Nc6 {[%emt 0:00:01]} 3. Bb5 {[%emt 0:00:01]} a6 {[%emt 0:00:01]} 4. Ba4 {[%emt 0:00:01]} d6 {[%emt 0:00:01]} 5. O-O {[%emt 0:00:01]} Bd7 {[%emt 0:00:01]} 6. c3 {[%emt 0:00:01]} Nf6 {[%emt 0:00:01]} 7. Re1 {[%emt 0:00:01]} b5 {[%emt 0:00:01]} 8. Qb3 {[%emt 0:00:02]} bxa4 {[%emt 0:00:01]} 9. Qxa4 {[%emt 0:00:01]} Nd4 {[%emt 0:00:04]} 10. Qd1 {[%emt 0:00:01]} Nxf3+ {[%emt 0:00:04]} 11. Qxf3 {[%emt 0:00:01]} c5 {[%emt 0:00:08]} 12. d4 {[%emt 0:00:04]} exd4 {[%emt 0:00:03]} 13. cxd4 {[%emt 0:00:01]} cxd4 {[%emt 0:00:01]} 14. b4 {[%emt 0:00:04]} Qc7 {[%emt 0:00:03]} 15. e5 {[%emt 0:00:03]} Qc2 {[%emt 0:00:04]} 16. exf6+ {[%emt 0:00:01]} Be6 {[%emt 0:00:02]} 17. Qxa8+ {[%emt 0:00:01]} Kd7 {[%emt 0:00:01]} 18. a4 {[%emt 0:00:03]} h5 {[%emt 0:00:02]} 19. b5 {[%emt 0:00:01]} gxf6 {[%emt 0:00:02]} 20. bxa6 {[%emt 0:00:02]} h4 {[%emt 0:00:02]} 21. a7 {[%emt 0:00:02]} Qc8 {[%emt 0:00:02]} 22. Rxe6 {[%emt 0:00:02]} Qxc1+ {[%emt 0:00:01] Zimtowitch resigns (Lag: Av=0.07s, max=0.5s)} 0-1

[Event "Test Tournament"]
[Site "Emanuel Lasker Arena"]
[Date "2024.04.09"]
[Round "3"]
[White "Dominatrix"]
[Black "Encheladus"]
[Result "0-1"]
[WhiteElo "1733"]
[BlackElo "1620"]
[Annotator "NA RC"]
[PlyCount "38"]
[EventDate "2024.04.09"]
[EventType "swiss (blitz)"]
[TimeControl "60"]

1. e4 {[%emt 0:00:01]} e5 {[%emt 0:00:01]} 2. Nf3 {[%emt 0:00:01]} Nc6 {[%emt 0:00:01]} 3. Bb5 {[%emt 0:00:01]} a6 {[%emt 0:00:00]} 4. Ba4 {[%emt 0:00:01]} d6 {[%emt 0:00:01]} 5. Bxc6+ {[%emt 0:00:01]} bxc6 {[%emt 0:00:01]} 6. d4 {[%emt 0:00:01]} f6 {[%emt 0:00:00]} 7. c4 {[%emt 0:00:01]} Ne7 {[%emt 0:00:01]} 8. Be3 {[%emt 0:00:04]} f5 {[%emt 0:00:01]} 9. Nc3 {[%emt 0:00:04]} Ng6 {[%emt 0:00:04]} 10. Qa4 {[%emt 0:00:03]} f4 {[%emt 0:00:02]} 11. Qxc6+ {[%emt 0:00:01]} Bd7 {[%emt 0:00:01]} 12. Ng5 {[%emt 0:00:03]} Bxc6 {[%emt 0:00:01]} 13. Ne6 {[%emt 0:00:01]} Qd7 {[%emt 0:00:03]} 14. Nxf8 {[%emt 0:00:01]} Nxf8 {[%emt 0:00:01]} 15. d5 {[%emt 0:00:03]} fxe3 {[%emt 0:00:01]} 16. dxc6 {[%emt 0:00:01]} exf2+ {[%emt 0:00:01]} 17. Kxf2 {[%emt 0:00:01]} Qxc6 {[%emt 0:00:01]} 18. h3 {[%emt 0:00:03]} Qxc4 {[%emt 0:00:01]} 19. Nd5 {[%emt 0:00:03]} h5 {[%emt 0:00:03] Dominatrix resigns (Lag: Av=0.05s, max=0.1s)} 0-1

[Event "Test Tournament"]
[Site "Emanuel Lasker Arena"]
[Date "2024.04.09"]
[Round "3"]
[White "CheckMaid"]
[Black "Fuerteventura"]
[Result "0-1"]
[WhiteElo "1650"]
[BlackElo "1620"]
[Annotator "NA RC"]
[PlyCount "38"]
[EventDate "2024.04.09"]
[EventType "swiss (blitz)"]
[TimeControl "60"]

1. e4 {[%emt 0:00:01]} e5 {[%emt 0:00:01]} 2. Nf3 {[%emt 0:00:00]} Nc6 {[%emt 0:00:01]} 3. Bb5 {[%emt 0:00:01]} a6 {[%emt 0:00:01]} 4. Ba4 {[%emt 0:00:01]} Nf6 {[%emt 0:00:01]} 5. O-O {[%emt 0:00:01]} Nxe4 {[%emt 0:00:01]} 6. Re1 {[%emt 0:00:01]} Nc5 {[%emt 0:00:01]} 7. Bxc6 {[%emt 0:00:01]} dxc6 {[%emt 0:00:01]} 8. Nxe5 {[%emt 0:00:01]} Be7 {[%emt 0:00:01]} 9. d4 {[%emt 0:00:01]} Ne6 {[%emt 0:00:01]} 10. Be3 {[%emt 0:00:01]} O-O {[%emt 0:00:00]} 11. Qg4 {[%emt 0:00:04]} f5 {[%emt 0:00:01]} 12. h3 {[%emt 0:00:02]} fxg4 {[%emt 0:00:01]} 13. hxg4 {[%emt 0:00:01]} Nxd4 {[%emt 0:00:04]} 14. Bxd4 {[%emt 0:00:01]} Qxd4 {[%emt 0:00:00]} 15. Nf3 {[%emt 0:00:03]} Qxb2 {[%emt 0:00:01]} 16. Rxe7 {[%emt 0:00:01]} Qxa1 {[%emt 0:00:00]} 17. Ng5 {[%emt 0:00:04]} Qxb1+ {[%emt 0:00:01]} 18. Kh2 {[%emt 0:00:01]} Bxg4 {[%emt 0:00:01]} 19. Rxc7 {[%emt 0:00:01]} Rxf2 {[%emt 0:00:01] CheckMaid resigns (Lag: Av=0.05s, max=0.1s)} 0-1

[Event "Test Tournament"]
[Site "Emanuel Lasker Arena"]
[Date "2024.04.09"]
[Round "3"]
[White "Churchill"]
[Black "Botany"]
[Result "0-1"]
[WhiteElo "1620"]
[BlackElo "1553"]
[Annotator "NA RC"]
[PlyCount "38"]
[EventDate "2024.04.09"]
[EventType "swiss (blitz)"]
[TimeControl "60"]

1. c4 {[%emt 0:00:02]} e6 {[%emt 0:00:01]} 2. Nf3 {[%emt 0:00:02]} d5 {[%emt 0:00:02]} 3. g3 {[%emt 0:00:02]} Nf6 {[%emt 0:00:01]} 4. Bg2 {[%emt 0:00:01]} dxc4 {[%emt 0:00:01]} 5. Qa4+ {[%emt 0:00:01]} Nbd7 {[%emt 0:00:01]} 6. Qxc4 {[%emt 0:00:01]} c5 {[%emt 0:00:01]} 7. d4 {[%emt 0:00:01]} Nd5 {[%emt 0:00:01]} 8. Bd2 {[%emt 0:00:02]} cxd4 {[%emt 0:00:03]} 9. Nxd4 {[%emt 0:00:02]} h5 {[%emt 0:00:01]} 10. O-O {[%emt 0:00:04]} Bc5 {[%emt 0:00:01]} 11. Bxd5 {[%emt 0:00:03]} exd5 {[%emt 0:00:01]} 12. Qxd5 {[%emt 0:00:02]} O-O {[%emt 0:00:04]} 13. Na3 {[%emt 0:00:02]} Qb6 {[%emt 0:00:04]} 14. Nab5 {[%emt 0:00:07]} Re8 {[%emt 0:00:04]} 15. a4 {[%emt 0:00:03]} Ne5 {[%emt 0:00:03]} 16. Ba5 {[%emt 0:00:02]} Qxa5 {[%emt 0:00:01]} 17. Qxc5 {[%emt 0:00:01]} Bg4 {[%emt 0:00:03]} 18. b4 {[%emt 0:00:02]} Rac8 {[%emt 0:00:03]} 19. e4 {[%emt 0:00:21] .} Rxc5 {[%emt 0:00:02]} 0-1

[Event "Test Tournament"]
[Site "Emanuel Lasker Arena"]
[Date "2024.04.09"]
[Round "3"]
[White "Sauerbruch"]
[Black "Girlfriend Chess"]
[Result "1-0"]
[WhiteElo "1620"]
[BlackElo "1753"]
[Annotator "NA RC"]
[PlyCount "61"]
[EventDate "2024.04.09"]
[EventType "swiss (blitz)"]
[TimeControl "60"]

1. e4 {[%emt 0:00:01]} Nf6 {[%emt 0:00:01]} 2. e5 {[%emt 0:00:01]} Nd5 {[%emt 0:00:01]} 3. d4 {[%emt 0:00:01]} d6 {[%emt 0:00:01]} 4. c4 {[%emt 0:00:01]} Nb6 {[%emt 0:00:01]} 5. f4 {[%emt 0:00:01]} dxe5 {[%emt 0:00:01]} 6. fxe5 {[%emt 0:00:00]} Bf5 {[%emt 0:00:01]} 7. Be3 {[%emt 0:00:01]} Nc6 {[%emt 0:00:01]} 8. Nc3 {[%emt 0:00:01]} Nb4 {[%emt 0:00:01]} 9. Rc1 {[%emt 0:00:01]} c5 {[%emt 0:00:03]} 10. Nf3 {[%emt 0:00:02]} cxd4 {[%emt 0:00:02]} 11. Nxd4 {[%emt 0:00:01]} Qd7 {[%emt 0:00:04]} 12. Nd5 {[%emt 0:00:04]} N6xd5 {[%emt 0:00:01]} 13. cxd5 {[%emt 0:00:01]} Nxd5 {[%emt 0:00:01]} 14. Nxf5 {[%emt 0:00:01]} e6 {[%emt 0:00:04]} 15. Qb3 {[%emt 0:00:03]} a5 {[%emt 0:00:03]} 16. Bb5 {[%emt 0:00:08]} Bb4+ {[%emt 0:00:01]} 17. Qxb4 {[%emt 0:00:01]} axb4 {[%emt 0:00:01]} 18. Nd6+ {[%emt 0:00:01]} Kd8 {[%emt 0:00:01]} 19. Bxd7 {[%emt 0:00:01]} Kxd7 {[%emt 0:00:01]} 20. Kd2 {[%emt 0:00:03]} Rxa2 {[%emt 0:00:01]} 21. Bd4 {[%emt 0:00:02]} h5 {[%emt 0:00:03]} 22. Rc5 {[%emt 0:00:01]} Rha8 {[%emt 0:00:03]} 23. Rhc1 {[%emt 0:00:02]} g5 {[%emt 0:00:03]} 24. Rc8 {[%emt 0:00:02]} f5 {[%emt 0:00:02]} 25. g3 {[%emt 0:00:02]} f4 {[%emt 0:00:02]} 26. R8c4 {[%emt 0:00:02]} f3 {[%emt 0:00:02]} 27. h4 {[%emt 0:00:02]} Ne3 {[%emt 0:00:05]} 28. Rc7+ {[%emt 0:00:01]} Kd8 {[%emt 0:00:01]} 29. Kxe3 {[%emt 0:00:00]} Ra1 {[%emt 0:00:01]} 30. Bb6 {[%emt 0:00:01]} R8a2 {[%emt 0:00:01]} 31. Rxb7# {[%emt 0:00:01] (Lag: Av=0.06s, max=0.3s)} 1-0

[Event "Test Tournament"]
[Site "Emanuel Lasker Arena"]
[Date "2024.04.09"]
[Round "3"]
[White "Schachmatz"]
[Black "Mrs Florrick"]
[Result "1-0"]
[WhiteElo "1620"]
[BlackElo "1780"]
[Annotator "NA RC"]
[PlyCount "31"]
[EventDate "2024.04.09"]
[EventType "swiss (blitz)"]
[TimeControl "60"]

1. d4 {[%emt 0:00:01]} Nf6 {[%emt 0:00:01]} 2. Nc3 {[%emt 0:00:01]} d5 {[%emt 0:00:01]} 3. Bg5 {[%emt 0:00:01]} e6 {[%emt 0:00:01]} 4. e4 {[%emt 0:00:01]} dxe4 {[%emt 0:00:01]} 5. Nxe4 {[%emt 0:00:01]} Be7 {[%emt 0:00:01]} 6. Bxf6 {[%emt 0:00:01]} gxf6 {[%emt 0:00:02]} 7. Nf3 {[%emt 0:00:01]} f5 {[%emt 0:00:01]} 8. Ng3 {[%emt 0:00:01]} c5 {[%emt 0:00:01]} 9. Bb5+ {[%emt 0:00:01]} Nc6 {[%emt 0:00:02]} 10. Qe2 {[%emt 0:00:03]} cxd4 {[%emt 0:00:01]} 11. O-O-O {[%emt 0:00:03]} Qd5 {[%emt 0:00:04]} 12. c4 {[%emt 0:00:07]} dxc3 {[%emt 0:00:04]} 13. Rxd5 {[%emt 0:00:01]} cxb2+ {[%emt 0:00:01]} 14. Qxb2 {[%emt 0:00:01]} O-O {[%emt 0:00:03]} 15. Nh5 {[%emt 0:00:01]} exd5 {[%emt 0:00:03]} 16. Qg7# {[%emt 0:00:02] (Lag: Av=0.07s, max=0.4s)} 1-0